bitfinex/quotes_BTCUSD_20240728
["timestamp","ask_amount","ask_price","bid_price","bid_amount"]
[1722179885651,0.19027178,67825.0,67823.0,0.0015542]
[1722179885852,0.12210142,67824.0,67823.0,0.0015542]
[1722179886008,0.12210142,67824.0,67823.0,0.16208399]
[1722179886223,0.12210142,67824.0,67823.0,0.51439179]
[1722179886618,0.06645281,67824.0,67823.0,0.51439179]
[1722179886823,0.06645288,67827.0,67826.0,0.117948]
[1722179887019,0.12400105,67827.0,67826.0,0.117948]
[1722179887717,0.14714464,67827.0,67826.0,0.437245]
[1722179888120,0.14714464,67827.0,67826.0,0.201348]
[1722179888402,0.14714464,67827.0,67825.0,0.0015542]
[1722179888654,0.06828327,67827.0,67826.0,0.014]
[1722179888833,0.19432177,67827.0,67826.0,0.0295542]
[1722179889041,0.1501823,67827.0,67826.0,0.1475022]
[1722179889247,0.1501823,67827.0,67826.0,0.47499137]
[1722179889601,0.09175809,67827.0,67826.0,0.47499137]
[1722179890041,0.19346634,67827.0,67826.0,0.46099137]
[1722179890235,0.19348807,67827.0,67826.0,0.22509437]
[1722179890437,0.09075809,67827.0,67826.0,0.21109437]
[1722179890592,0.13489756,67827.0,67826.0,0.21264857]
[1722179890795,0.13489756,67827.0,67826.0,0.44854557]
[1722179891027,0.08975809,67827.0,67826.0,0.53394557]
[1722179891228,0.08975809,67827.0,67826.0,0.53239137]
[1722179891439,0.09075809,67827.0,67826.0,0.703142]
[1722179891671,0.09075809,67827.0,67826.0,0.939039]
[1722179891857,0.02414359,67827.0,67826.0,0.939039]
[1722179892045,0.02414359,67827.0,67826.0,1.078739]
[1722179892324,0.02414359,67827.0,67826.0,1.30001977]
[1722179893151,0.001,67827.0,67826.0,1.30001977]
[1722179894754,0.001,67827.0,67826.0,1.10441977]
[1722179894976,0.001,67827.0,67826.0,1.03157665]
[1722179895177,0.001,67827.0,67826.0,1.08157665]
[1722179895586,0.001,67827.0,67826.0,1.08250065]
[1722179895994,0.06723337,67827.0,67826.0,1.08250065]
[1722179896439,0.06823337,67827.0,67826.0,0.53770665]
[1722179896639,0.15287581,67827.0,67826.0,0.38942588]
[1722179896827,0.20931591,67827.0,67826.0,0.38942588]
[1722179897057,0.20950799,67827.0,67826.0,0.38942588]
[1722179897260,0.20950799,67827.0,67826.0,0.15352888]
[1722179897261,0.25363948,67827.0,67826.0,0.15352888]
[1722179897434,0.27570523,67827.0,67826.0,0.15508308]
[1722179897883,0.39772259,67827.0,67826.0,0.03713508]
[1722179898089,0.39772259,67827.0,67826.0,0.03558088]
[1722179898295,0.37449373,67827.0,67826.0,0.03558088]
[1722179898495,0.25654673,67827.0,67826.0,0.03558088]
[1722179899422,0.19037284,67827.0,67826.0,0.03558088]
[1722179899870,0.19037284,67827.0,67826.0,0.03673815]
[1722179900025,0.19037284,67827.0,67826.0,0.03558088]
[1722179900226,0.19037284,67827.0,67826.0,0.15352888]
[1722179900484,0.23447256,67827.0,67826.0,0.15352888]
[1722179901047,0.25761581,67827.0,67826.0,0.15352888]
[1722179901512,0.25761581,67827.0,67826.0,0.15464972]
[1722179901513,0.25768143,67827.0,67826.0,0.15464972]
[1722179901713,0.25824172,67827.0,67826.0,0.15464972]
[1722179901915,0.06741071,67827.0,67826.0,0.62644372]
[1722179902124,0.06741071,67827.0,67826.0,0.62532288]
[1722179902580,0.06741071,67827.0,67826.0,0.73671687]
[1722179904549,0.001,67827.0,67826.0,0.73671687]
[1722179904775,0.06707044,67827.0,67826.0,0.73671687]
[1722179904980,0.09021306,67827.0,67826.0,0.73671687]
[1722179905408,0.14810179,67827.0,67826.0,0.73671687]
[1722179905607,0.14910179,67827.0,67826.0,0.38942588]
[1722179906437,0.12595917,67827.0,67826.0,0.38942588]
[1722179907568,0.12595917,67827.0,67826.0,0.15352888]
[1722179907764,0.12595917,67827.0,67826.0,0.38942588]
[1722179907972,0.12619736,67827.0,67826.0,0.38942588]
[1722179908895,0.17029223,67827.0,67826.0,0.38942588]
[1722179909693,0.12619736,67827.0,67826.0,0.38942588]
[1722179909895,0.12519736,67827.0,67826.0,0.38942588]
[1722179910076,0.12619736,67827.0,67826.0,0.38942588]
[1722179911042,0.14934016,67827.0,67826.0,0.38942588]
[1722179911461,0.14962768,67827.0,67826.0,0.38942588]
[1722179911713,0.14962758,67827.0,67826.0,0.38942588]
[1722179912058,0.14862758,67827.0,67826.0,0.38942588]
[1722179912672,0.14862758,67827.0,67826.0,0.62532288]
[1722179913185,0.14962758,67827.0,67826.0,0.62532288]
[1722179913405,0.14962758,67827.0,67826.0,0.38942588]
[1722179913555,0.14977096,67827.0,67826.0,0.38942588]
[1722179914518,0.14964648,67827.0,67826.0,0.38942588]
[1722179915167,0.14864648,67827.0,67826.0,0.38942588]
[1722179915929,0.14964648,67827.0,67826.0,0.38942588]
[1722179916320,0.14864648,67827.0,67826.0,0.38942588]
[1722179916531,0.29169138,67827.0,67826.0,0.38942588]
[1722179916735,0.45732211,67827.0,67826.0,0.15352888]
[1722179917326,0.45732211,67827.0,67826.0,0.38942588]
[1722179917576,0.22553153,67827.0,67826.0,0.38942588]
[1722179917825,0.45735317,67827.0,67826.0,0.38942588]
[1722179917999,0.43421037,67827.0,67826.0,0.38942588]
[1722179918172,0.36802917,67827.0,67826.0,0.38942588]
[1722179918374,0.37209953,67827.0,67826.0,0.03558088]
[1722179918546,1.07213653,67827.0,67826.0,0.03558088]
[1722179918747,0.96183453,67827.0,67826.0,0.03558088]
[1722179918965,0.96183453,67827.0,67826.0,0.028924]
[1722179919947,1.09414449,67827.0,67826.0,0.028924]
[1722179920162,0.96183453,67827.0,67826.0,0.028924]
[1722179920533,1.09414449,67827.0,67826.0,0.028924]
[1722179920736,0.79619409,67827.0,67826.0,0.028924]
[1722179920944,0.96193266,67827.0,67826.0,0.028924]
[1722179921188,0.8952611,67827.0,67826.0,0.028924]
[1722179921356,0.98507837,67827.0,67826.0,0.028924]
[1722179921529,0.96193381,67827.0,67826.0,0.028924]
[1722179922135,0.98507837,67827.0,67826.0,0.028924]
[1722179922552,0.96093381,67827.0,67826.0,0.028924]
[1722179923197,0.96088877,67827.0,67826.0,0.028924]
[1722179923561,0.96188877,67827.0,67826.0,0.028924]
[1722179923761,0.72499477,67827.0,67826.0,0.028924]
[1722179923970,0.7259549,67827.0,67826.0,0.028924]
[1722179924372,0.9608489,67827.0,67826.0,0.028924]
[1722179924976,0.9618489,67827.0,67826.0,0.028924]
[1722179925218,0.9608489,67827.0,67826.0,0.028924]
[1722179925807,0.98399339,67827.0,67826.0,0.028924]
[1722179926972,0.98499339,67827.0,67826.0,0.028924]
[1722179927177,0.98399339,67827.0,67826.0,0.028924]
[1722179927377,0.98394901,67827.0,67826.0,0.028924]
[1722179927548,1.11630804,67827.0,67826.0,0.028924]
[1722179927775,1.11714804,67827.0,67826.0,0.028924]
[1722179928402,0.98578901,67827.0,67826.0,0.028924]
[1722179929901,0.96264452,67827.0,67826.0,0.028924]
[1722179930504,0.79703409,67827.0,67826.0,0.028924]
[1722179930710,0.962673,67827.0,67826.0,0.028924]
[1722179930912,0.79703409,67827.0,67826.0,0.028924]
[1722179931180,0.9626796,67827.0,67826.0,0.028924]
[1722179933386,0.98582402,67827.0,67826.0,0.028924]
[1722179933999,0.9857021,67827.0,67826.0,0.028924]
[1722179934260,0.7498081,67827.0,67826.0,0.028924]
[1722179934415,0.6689081,67827.0,67826.0,0.028924]
[1722179934999,0.64576368,67827.0,67826.0,0.028924]
[1722179935199,0.88165768,67827.0,67826.0,0.028924]
[1722179935871,0.96285768,67827.0,67826.0,0.028924]
[1722179936076,1.83464568,67827.0,67826.0,0.028924]
[1722179936405,1.85007433,67827.0,67826.0,0.028924]
[1722179936613,1.93537433,67827.0,67826.0,0.028924]
[1722179936794,1.93437433,67827.0,67826.0,0.014924]
[1722179937003,1.76885074,67827.0,67826.0,0.014924]
[1722179937206,2.06375585,67827.0,67826.0,0.014924]
[1722179937580,2.27988043,67827.0,67826.0,0.014924]
[1722179938020,2.28588043,67827.0,67826.0,0.015924]
[1722179938245,1.84190375,67827.0,67826.0,0.015924]
[1722179938543,1.84190375,67827.0,67826.0,0.014924]
[1722179938544,1.78590375,67827.0,67826.0,0.014924]
[1722179938948,1.78590375,67827.0,67826.0,0.000924]
[1722179939696,1.78790375,67827.0,67826.0,0.000924]
[1722179940001,1.79690375,67827.0,67826.0,0.001924]
[1722179940198,1.63119864,67827.0,67826.0,0.001924]
[1722179940460,1.78722902,67827.0,67826.0,0.000924]
[1722179940647,1.63119864,67827.0,67826.0,0.001924]
[1722179940999,1.794233,67827.0,67826.0,0.001924]
[1722179941134,1.785233,67827.0,67826.0,0.000924]
[1722179941533,1.793233,67827.0,67826.0,0.001924]
[1722179941965,1.7700851,67827.0,67826.0,0.001924]
[1722179942160,1.60505074,67827.0,67826.0,0.001924]
[1722179942363,1.47628949,67827.0,67826.0,0.001924]
[1722179942587,1.529116,67827.0,67826.0,0.001924]
[1722179943010,1.530116,67827.0,67826.0,0.001924]
[1722179943464,1.530116,67827.0,67826.0,0.000924]
[1722179943663,1.316616,67827.0,67826.0,0.001924]
[1722179943870,1.316616,67827.0,67826.0,0.002924]
[1722179943871,1.323616,67827.0,67826.0,0.002924]
[1722179944053,1.529116,67827.0,67826.0,0.001924]
[1722179944460,1.77301,67827.0,67826.0,0.002924]
[1722179944694,1.77301,67827.0,67826.0,0.000924]
[1722179944695,1.76501,67827.0,67826.0,0.000924]
[1722179945040,1.75801,67827.0,67826.0,0.000924]
[1722179945148,1.81601,67827.0,67826.0,0.001924]
[1722179945371,2.08915755,67827.0,67826.0,0.000924]
[1722179945779,1.92409106,67827.0,67826.0,0.000924]
[1722179946032,2.08915719,67827.0,67826.0,0.000924]
[1722179946197,2.06600964,67827.0,67826.0,0.000924]
[1722179946413,2.08012864,67827.0,67826.0,0.000924]
[1722179947483,2.08812864,67827.0,67826.0,0.001924]
[1722179947686,2.07212864,67827.0,67826.0,0.000924]
[1722179947926,2.07212864,67827.0,67826.0,0.001924]
[1722179948125,2.08012864,67827.0,67826.0,0.001924]
[1722179948965,1.78012864,67827.0,67826.0,0.001924]
[1722179949197,1.3316033,67827.0,67826.0,0.001924]
[1722179949577,1.590645,67827.0,67826.0,0.001924]
[1722179949760,1.5674973,67827.0,67826.0,0.001924]
[1722179949958,1.3316033,67827.0,67826.0,0.001924]
[1722179950160,1.5674973,67827.0,67826.0,0.001924]
[1722179950696,1.6174973,67827.0,67826.0,0.001924]
[1722179951971,1.3316033,67827.0,67826.0,0.001924]
[1722179952379,1.33111811,67827.0,67826.0,0.001924]
[1722179952575,1.33211811,67827.0,67826.0,0.001924]
[1722179952779,1.16566851,67827.0,67826.0,0.001924]
[1722179953023,1.33211817,67827.0,67826.0,0.001924]
[1722179953196,1.40526549,67827.0,67826.0,0.001924]
[1722179953879,1.64115949,67827.0,67826.0,0.001924]
[1722179954079,1.61801217,67827.0,67826.0,0.001924]
[1722179954714,1.61779638,67827.0,67826.0,0.001924]
[1722179954934,1.33190238,67827.0,67826.0,0.001924]
[1722179955132,1.33090238,67827.0,67826.0,0.001924]
[1722179955714,1.33081294,67827.0,67826.0,0.001924]
[1722179955901,1.33181294,67827.0,67826.0,0.001924]
[1722179956104,1.33081294,67827.0,67826.0,0.001924]
[1722179956642,1.33181294,67827.0,67826.0,0.001924]
[1722179956843,1.38181294,67827.0,67826.0,0.001924]
[1722179957041,1.60395996,67827.0,67826.0,0.001924]
[1722179957248,1.68935996,67827.0,67826.0,0.001924]
[1722179957495,1.46721294,67827.0,67826.0,0.001924]
[1722179958357,1.41721294,67827.0,67826.0,0.001924]
[1722179958771,1.16986851,67827.0,67826.0,0.001924]
[1722179959011,1.335956,67827.0,67826.0,0.001924]
[1722179960909,1.35910324,67827.0,67826.0,0.001924]
[1722179962168,1.35888345,67827.0,67826.0,0.001924]
[1722179962363,1.25033621,67827.0,67826.0,0.001924]
[1722179962566,1.3355163,67827.0,67826.0,0.001924]
[1722179963303,0.9526223,67827.0,67826.0,0.001924]
[1722179963507,1.0380223,67827.0,67826.0,0.001924]
[1722179965018,0.9526223,67827.0,67826.0,0.001924]
[1722179965220,1.03775559,67827.0,67826.0,0.001924]
[1722179965618,1.06090202,67827.0,67826.0,0.001924]
[1722179965861,1.03985742,67827.0,67826.0,0.001924]
[1722179966801,1.27575142,67827.0,67826.0,0.001924]
[1722179968429,1.27578414,67827.0,67826.0,0.001924]
[1722179968879,1.33608414,67827.0,67826.0,0.001924]
[1722179969335,1.35923078,67827.0,67826.0,0.001924]
[1722179969573,1.33608414,67827.0,67826.0,0.001924]
[1722179970247,1.33607413,67827.0,67826.0,0.001924]
[1722179970456,1.33507413,67827.0,67826.0,0.001924]
[1722179970669,1.33607413,67827.0,67826.0,0.001924]
[1722179971188,1.46407413,67827.0,67826.0,0.001924]
[1722179971520,1.69996813,67827.0,67826.0,0.001924]
[1722179971710,1.69957571,67827.0,67826.0,0.001924]
[1722179972156,1.53456434,67827.0,67826.0,0.001924]
[1722179972403,1.64266332,67827.0,67826.0,0.001924]
[1722179972902,1.66581035,67827.0,67826.0,0.001924]
[1722179973998,1.71581035,67827.0,67826.0,0.001924]
[1722179974411,1.71550673,67827.0,67826.0,0.001924]
[1722179974823,1.55771137,67827.0,67826.0,0.001924]
[1722179975007,1.66551285,67827.0,67826.0,0.001924]
[1722179975636,1.42961885,67827.0,67826.0,0.001924]
[1722179976186,1.66551285,67827.0,67826.0,0.001924]
[1722179977758,1.64236582,67827.0,67826.0,0.001924]
[1722179978200,1.48456434,67827.0,67826.0,0.001924]
[1722179978379,1.85977865,67827.0,67826.0,0.001924]
[1722179979339,1.85877865,67827.0,67826.0,0.001924]
[1722179980215,1.85977865,67827.0,67826.0,0.001924]
[1722179980388,1.64142133,67827.0,67826.0,0.001924]
[1722179980591,1.69242133,67827.0,67826.0,0.001924]
[1722179981020,1.71556839,67827.0,67826.0,0.001924]
[1722179981438,1.5577114,67827.0,67826.0,0.001924]
[1722179981654,1.71536146,67827.0,67826.0,0.001924]
[1722179981809,1.5577114,67827.0,67826.0,0.001924]
[1722179982161,1.71536145,67827.0,67826.0,0.001924]
[1722179983709,1.66536145,67827.0,67826.0,0.001924]
[1722179984037,1.50878021,67827.0,67826.0,0.001924]
[1722179984363,1.29115367,67827.0,67826.0,0.001924]
[1722179984888,1.29141263,67827.0,67826.0,0.081624]
[1722179985282,1.20601263,67827.0,67826.0,0.081624]
[1722179985471,1.29141263,67827.0,67826.0,0.081624]
[1722179986142,1.26826557,67827.0,67826.0,0.081624]
[1722179987794,1.11037034,67827.0,67826.0,0.081624]
[1722179988005,1.26838456,67827.0,67826.0,0.081624]
[1722179990781,1.21250123,67827.0,67826.0,0.081624]
[1722179990987,1.26771993,67827.0,67826.0,0.081624]
[1722179991168,1.26756583,67827.0,67826.0,0.081624]
[1722179991640,1.26749738,67827.0,67826.0,0.081624]
[1722179992918,1.29064372,67827.0,67826.0,0.081624]
[1722179993126,1.29059338,67827.0,67826.0,0.081624]
[1722179994472,1.13285205,67827.0,67826.0,0.081624]
[1722179994758,1.29063713,67827.0,67826.0,0.081624]
[1722179995588,1.58783113,67827.0,67826.0,0.001924]
[1722179997788,1.58831695,67827.0,67826.0,0.001924]
[1722179998212,1.29112295,67827.0,67826.0,0.001924]
[1722179998433,1.26797661,67827.0,67826.0,0.001924]
[1722179999188,1.26797661,67827.0,67826.0,0.079124]
[1722179999189,1.18157661,67827.0,67826.0,0.079124]
[1722179999384,1.26697661,67827.0,67826.0,0.079124]
[1722179999616,1.26797661,67827.0,67826.0,0.079124]
[1722180000832,1.26936412,67827.0,67826.0,0.079124]
[1722180001246,1.10970571,67827.0,67826.0,0.079124]
[1722180001426,1.26936383,67827.0,67826.0,0.079124]
[1722180001779,1.29151,67827.0,67826.0,0.079124]
[1722180001981,1.10870571,67827.0,67826.0,0.079124]
[1722180002129,1.25407545,67827.0,67826.0,0.079124]
[1722180002549,1.25389584,67827.0,67826.0,0.079124]
[1722180002988,0.34286684,67827.0,67826.0,0.079124]
[1722180003158,0.60063514,67827.0,67826.0,0.142424]
[1722180003363,0.93261161,67827.0,67826.0,0.1577783]
[1722180003744,0.92461161,67827.0,67826.0,0.1567783]
[1722180003955,1.39639961,67827.0,67826.0,0.000924]
[1722180004203,1.38928061,67827.0,67826.0,0.000924]
[1722180004344,1.38228061,67827.0,67826.0,0.000924]
[1722180004551,1.39139961,67827.0,67826.0,0.000924]
[1722180004955,1.39239961,67827.0,67826.0,0.000924]
[1722180005169,1.39239961,67827.0,67826.0,0.078124]
[1722180005170,1.17964951,67827.0,67826.0,0.078124]
[1722180005413,1.17964951,67827.0,67826.0,0.079124]
[1722180006512,1.18051587,67827.0,67826.0,0.079124]
[1722180007843,0.94462187,67827.0,67826.0,0.079124]
[1722180008045,0.94362187,67827.0,67826.0,0.079124]
[1722180008168,0.94462187,67827.0,67826.0,0.079124]
[1722180009187,0.70872787,67827.0,67826.0,0.141524]
[1722180009691,0.53911396,67827.0,67826.0,0.141524]
[1722180009894,0.70032701,67827.0,67826.0,0.141524]
[1722180013052,0.6998103,67827.0,67826.0,0.141524]
[1722180013254,0.53911396,67827.0,67826.0,0.141524]
[1722180013429,0.69981025,67827.0,67826.0,0.141524]
[1722180016195,0.69924326,67827.0,67826.0,0.141524]
[1722180016435,0.84840884,67827.0,67826.0,0.141524]
[1722180016639,0.46334926,67827.0,67826.0,0.141524]
[1722180016840,0.2403319,67827.0,67826.0,0.2747363]
[1722180017216,0.2403319,67827.0,67826.0,0.51512802]
[1722180017537,0.2403319,67827.0,67826.0,0.27923102]
[1722180017759,0.2403319,67827.0,67826.0,0.51512802]
[1722180018164,0.2393319,67827.0,67826.0,0.51512802]
[1722180018378,0.2393319,67827.0,67826.0,0.52212802]
[1722180018578,0.2403319,67827.0,67826.0,0.50686372]
[1722180019165,0.0802026,67827.0,67826.0,0.50686372]
[1722180019407,0.24352654,67827.0,67826.0,0.50686372]
[1722180019563,0.21631228,67827.0,67826.0,0.74276072]
[1722180019764,0.23081746,67827.0,67826.0,1.09368937]
[1722180019963,0.12040703,67827.0,67826.0,1.09368937]
[1722180020364,0.12040703,67827.0,67826.0,1.08919465]
[1722180020563,0.12040703,67827.0,67826.0,0.85779237]
[1722180020564,0.18665669,67827.0,67826.0,0.85779237]
[1722180020766,0.12040703,67827.0,67826.0,0.85779237]
[1722180021260,0.11940703,67827.0,67826.0,0.85079237]
[1722180021471,0.18565669,67827.0,67826.0,1.09268937]
[1722180021668,0.10833349,67827.0,67826.0,1.14168937]
[1722180021893,0.17286863,67827.0,67826.0,1.08668937]
[1722180022179,0.17286863,67827.0,67826.0,1.13768937]
[1722180022180,0.06418833,67827.0,67826.0,1.13768937]
[1722180022381,0.06418833,67827.0,67826.0,1.38361901]
[1722180022382,0.00084,67827.0,67826.0,1.38361901]
[1722180022584,0.00084,67827.0,67826.0,1.40661901]
[1722180022792,0.00084,67827.0,67826.0,1.42061901]
[1722180022998,0.00084,67827.0,67826.0,1.41961901]
[1722180023225,0.00084,67827.0,67826.0,1.40561901]
[1722180023411,0.00084,67827.0,67826.0,1.41161901]
[1722180023838,0.00084,67827.0,67826.0,1.40561901]
[1722180024202,0.00184,67827.0,67826.0,1.41961901]
[1722180025157,0.00184,67827.0,67826.0,1.66951601]
[1722180025391,0.00184,67827.0,67826.0,1.41961901]
[1722180025774,2.5,67830.0,67829.0,1.34863364]
[1722180025775,2.49987,67830.0,67829.0,1.34863364]
[1722180026351,2.49987,67830.0,67829.0,1.35312836]
[1722180027124,2.50087,67830.0,67829.0,1.36712836]
[1722180028356,2.50087,67830.0,67829.0,1.37912836]
[1722180028601,2.50087,67830.0,67829.0,1.52938793]
[1722180030076,2.50087,67830.0,67829.0,1.53138793]
[1722180030275,2.50087,67830.0,67829.0,1.52938793]
[1722180031704,2.50087,67830.0,67829.0,1.53473704]
[1722180034051,2.52400969,67830.0,67829.0,1.53473704]
[1722180036211,2.52400969,67830.0,67829.0,1.77062404]
[1722180036420,2.52400969,67830.0,67829.0,1.77262404]
[1722180037231,2.52300969,67830.0,67829.0,1.75862404]
[1722180037642,2.52300969,67830.0,67829.0,1.77062404]
[1722180038184,2.52300969,67830.0,67829.0,1.75862404]
[1722180038582,2.52295268,67830.0,67829.0,1.77262404]
[1722180039026,2.52295268,67830.0,67829.0,1.5256944]
[1722180039238,2.52295268,67830.0,67829.0,1.77262404]
[1722180039458,2.52295268,67830.0,67829.0,2.18711104]
[1722180039655,2.52295268,67830.0,67829.0,2.28711104]
[1722180040464,2.49124937,67830.0,67829.0,2.28711104]
[1722180040769,2.49124937,67830.0,67829.0,2.27311104]
[1722180040907,2.49224937,67830.0,67829.0,2.28711104]
[1722180041133,2.49224937,67830.0,67829.0,2.27311104]
[1722180041319,2.49224937,67830.0,67829.0,2.28711104]
[1722180044258,2.18439241,67830.0,67829.0,2.28711104]
[1722180044448,1.05450732,67830.0,67829.0,2.67325761]
[1722180044642,1.03750732,67830.0,67829.0,2.67325761]
[1722180044849,0.94905232,67830.0,67829.0,2.67325761]
[1722180045095,0.89008232,67830.0,67829.0,2.71403135]
[1722180045812,0.65023278,67830.0,67829.0,2.71403135]
[1722180045954,0.43330538,67830.0,67829.0,2.71403135]
[1722180046663,0.43230538,67830.0,67829.0,2.8199995]
[1722180046871,0.40282038,67830.0,67829.0,2.8339995]
[1722180047081,0.00084,67837.0,67836.0,1.74977064]
[1722180047298,0.00084,67846.0,67845.0,0.65067564]
[1722180047499,0.00084,67846.0,67845.0,1.58096864]
[1722180047702,0.00084,67846.0,67845.0,1.60396864]
[1722180047903,0.00084,67846.0,67845.0,1.61347335]
[1722180048305,0.00084,67846.0,67845.0,1.76907335]
[1722180048510,0.00084,67846.0,67845.0,1.91933292]
[1722180048722,0.00084,67846.0,67845.0,2.16916392]
[1722180049143,0.00084,67846.0,67845.0,2.26916392]
[1722180050140,0.00084,67846.0,67845.0,2.25516392]
[1722180050863,0.00084,67846.0,67845.0,2.26916392]
[1722180051292,0.00084,67846.0,67845.0,2.18376392]
[1722180051524,0.00084,67846.0,67845.0,2.26916392]
[1722180051995,0.00084,67846.0,67845.0,2.28316392]
[1722180054607,0.00084,67846.0,67845.0,2.26916392]
[1722180054808,0.00084,67846.0,67845.0,2.25516392]
[1722180055051,0.00084,67846.0,67845.0,2.26916392]
[1722180055200,0.00084,67846.0,67845.0,2.28316392]
[1722180056697,0.02397168,67846.0,67845.0,2.28316392]
[1722180056900,0.00084,67846.0,67845.0,2.28316392]
[1722180058188,0.00084,67846.0,67845.0,2.2921703]
[1722180060193,0.02397166,67846.0,67845.0,2.2921703]
[1722180061098,0.02397166,67846.0,67845.0,2.33294491]
[1722180061242,0.02397166,67846.0,67845.0,2.2921703]
[1722180062227,0.02397166,67846.0,67845.0,1.69371391]
[1722180062401,0.02397166,67846.0,67845.0,1.6529393]
[1722180062703,0.00084,67846.0,67845.0,1.6529393]
[1722180062990,0.00084,67846.0,67845.0,1.17217866]
[1722180063209,0.00084,67846.0,67845.0,1.4171083]
[1722180063471,0.00084,67846.0,67845.0,1.17217866]
[1722180064038,0.38353836,67846.0,67845.0,0.03750471]
[1722180064277,0.14771036,67846.0,67845.0,0.028]
[1722180064659,0.20839725,67846.0,67845.0,0.028]
[1722180064834,0.20839725,67846.0,67845.0,0.03645003]
[1722180064835,0.21246761,67846.0,67845.0,0.03645003]
[1722180065035,0.33038161,67846.0,67845.0,0.00845003]
[1722180065238,0.0635,67842.0,67840.0,0.117923]
[1722180065468,0.0635,67842.0,67841.0,0.15417101]
[1722180066043,0.0635,67842.0,67841.0,0.03624901]
[1722180066656,0.0635,67842.0,67841.0,0.15417101]
[1722180066860,0.08663779,67842.0,67841.0,0.15417101]
[1722180067466,0.0635,67842.0,67841.0,0.15417101]
[1722180067759,0.0635,67842.0,67841.0,0.16217101]
[1722180067984,0.0635,67842.0,67841.0,0.008]
[1722180068180,0.0645,67842.0,67841.0,0.125922]
[1722180068357,0.001,67840.0,67839.0,0.117925]
[1722180068558,0.001,67840.0,67839.0,0.353777]
[1722180068559,0.0624,67840.0,67839.0,0.353777]
[1722180068771,0.0624,67840.0,67839.0,0.41861221]
[1722180070285,0.0624,67840.0,67839.0,0.363777]
[1722180070697,0.08553806,67840.0,67839.0,0.363777]
[1722180070902,0.08553806,67840.0,67839.0,0.372777]
[1722180071320,0.0624,67840.0,67839.0,0.372777]
[1722180072987,0.0624,67840.0,67839.0,0.608629]
[1722180073128,0.0624,67840.0,67839.0,0.70646239]
[1722180074119,0.0624,67840.0,67839.0,0.47061039]
[1722180074760,0.08553793,67840.0,67839.0,0.47061039]
[1722180074946,0.08553793,67840.0,67839.0,0.47913561]
[1722180076049,0.0624,67840.0,67839.0,0.47913561]
[1722180079058,0.0634,67840.0,67839.0,0.47913561]
[1722180079242,0.0624,67840.0,67839.0,0.47913561]
[1722180080709,0.08553798,67840.0,67839.0,0.47913561]
[1722180082668,0.58877014,67840.0,67839.0,0.02752522]
[1722180082917,0.58877014,67840.0,67839.0,0.019]
[1722180082918,0.35191902,67840.0,67839.0,0.019]
[1722180083130,0.28375479,67840.0,67839.0,0.019]
[1722180083336,0.4457548,67840.0,67839.0,0.019]
[1722180083511,0.4457548,67840.0,67839.0,0.02758145]
[1722180083749,0.4457548,67840.0,67839.0,0.019]
[1722180083964,0.6816038,67840.0,67839.0,0.019]
[1722180084505,0.6806038,67840.0,67839.0,0.019]
[1722180084706,0.4457548,67840.0,67839.0,0.019]
[1722180084909,0.40167879,67840.0,67839.0,0.019]
[1722180085391,0.40167879,67840.0,67839.0,0.02758145]
[1722180085597,0.40210359,67840.0,67839.0,0.02758145]
[1722180085895,0.40210359,67840.0,67839.0,0.019]
[1722180086083,0.4252427,67840.0,67839.0,0.019]
[1722180088080,0.3063187,67840.0,67839.0,0.0326934]
[1722180088491,0.3063187,67840.0,67839.0,0.04129339]
[1722180088698,0.23442095,67840.0,67839.0,0.04129339]
[1722180088871,0.30713728,67840.0,67839.0,0.04129339]
[1722180089682,0.28399817,67840.0,67839.0,0.04129339]
[1722180089889,0.28350042,67840.0,67839.0,0.04129339]
[1722180090088,0.28450042,67840.0,67839.0,0.04129339]
[1722180092092,0.28428435,67840.0,67839.0,0.04129339]
[1722180092499,0.28430428,67840.0,67839.0,0.04129339]
[1722180093244,0.30744309,67840.0,67839.0,0.04129339]
[1722180093468,0.28430428,67840.0,67839.0,0.04129339]
[1722180095267,0.2184771,67840.0,67839.0,0.04129339]
[1722180095490,0.28425258,67840.0,67839.0,0.04129339]
[1722180096427,0.30739135,67840.0,67839.0,0.04129339]
[1722180096790,0.30639135,67840.0,67839.0,0.04129339]
[1722180097347,0.30812426,67840.0,67839.0,0.04129339]
[1722180097675,0.30712426,67840.0,67839.0,0.04129339]
[1722180098095,0.30812426,67840.0,67839.0,0.04129339]
[1722180099335,0.30712426,67840.0,67839.0,0.04129339]
[1722180099589,0.30812426,67840.0,67839.0,0.04129339]
[1722180099736,0.30812426,67840.0,67839.0,0.02759999]
[1722180099929,0.30812426,67840.0,67839.0,0.019]
[1722180100803,0.3290543,67840.0,67839.0,0.019]
[1722180101160,0.4469783,67840.0,67839.0,0.019]
[1722180101358,0.4143543,67840.0,67839.0,0.019]
[1722180101584,0.43638871,67840.0,67839.0,0.019]
[1722180101782,0.43657322,67840.0,67839.0,0.019]
[1722180102221,0.37043698,67840.0,67839.0,0.019]
[1722180102464,0.43657222,67840.0,67839.0,0.019]
[1722180102718,0.37043698,67840.0,67839.0,0.019]
[1722180103841,0.4586173,67840.0,67839.0,0.019]
[1722180104282,0.48175589,67840.0,67839.0,0.019]
[1722180104625,0.49210019,67840.0,67839.0,0.019]
[1722180105098,0.49226066,67840.0,67839.0,0.019]
[1722180105304,0.39373379,67840.0,67839.0,0.019]
[1722180105726,0.46911758,67840.0,67839.0,0.019]
[1722180106330,0.58704158,67840.0,67839.0,0.019]
[1722180106555,0.46911758,67840.0,67839.0,0.019]
[1722180108182,0.58704158,67840.0,67839.0,0.019]
[1722180108394,0.46907709,67840.0,67839.0,0.019]
[1722180108794,0.49221594,67840.0,67839.0,0.019]
[1722180109234,0.46907709,67840.0,67839.0,0.019]
[1722180110172,0.6016005,67840.0,67839.0,0.019]
[1722180110556,0.7195245,67840.0,67839.0,0.019]
[1722180110891,0.58700109,67840.0,67839.0,0.019]
[1722180111372,0.71959869,67840.0,67839.0,0.019]
[1722180111695,0.71983387,67840.0,67839.0,0.019]
[1722180111878,0.71983387,67840.0,67839.0,0.02763183]
[1722180112084,0.65364409,67840.0,67839.0,0.02763183]
[1722180112285,0.58722891,67840.0,67839.0,0.02763183]
[1722180112586,0.71982201,67840.0,67839.0,0.02763183]
[1722180112931,0.74296079,67840.0,67839.0,0.02763183]
[1722180113127,0.61036769,67840.0,67839.0,0.02763183]
[1722180113329,0.74296079,67840.0,67839.0,0.02763183]
[1722180114401,0.61036769,67840.0,67839.0,0.02763183]
[1722180114780,0.61034673,67840.0,67839.0,0.02763183]